Cogmind - Beta 10.2 @@@ ROGUE MODE // 2020.12.16 @ 05:46:00 Player: WeirdFoe Result: Destroyed by Y-45 Defender with Beam Rifle Performance ------------- Evolutions (2) 1000 Regions Visited (4) 800 Robots Destroyed (0) 0 Value Destroyed (0) 0 Prototype IDs (0) 0 Alien Tech Used (0) 0 Bonus (470) 470 TOTAL SCORE: 2270 Bonus ------- Pacifist 470 Cogmind --------- Core Integrity 0/550 Matter 211/300 Energy 138/160 System Corruption 14% Temperature Cool (10) Movement Flying (40) Location -8/Materials Parts ------- > --- POWER (1) -------- Light Nuclear Core > --- PROPULSION (2) --- Cesium-ion Thruster > --- UTILITY (6) ------ Hacking Suite > --- WEAPON (2) ------- (None) > --- INVENTORY (4) ---- (None) Peak State ------------ > --- POWER ------------ Ion Engine > --- PROPULSION ------- Compact Wheel > --- UTILITY ---------- Small Storage Unit ECM Suite Shield Generator Integration Mediator > --- WEAPON ----------- Spread Laser High-powered Shotgun > --- INVENTORY -------- Ion Engine [Rating: 13] Favorites ----------- Power Ion Engine Engine Ion Engine Power Core Light Nuclear Core Propulsion Compact Wheel Leg Aluminum Leg Wheel Compact Wheel Flight Unit Cesium-ion Thruster Utility Small Storage Unit Device Integration Mediator Storage Small Storage Unit Hackware Hacking Suite Protection Light Armor Plating Weapon Medium Laser Energy Gun Medium Laser Ballistic Gun High-powered Shotgun Special Weapon Mining Laser Build | -11 -10 -10 -9 -8 ------- Run | Scr Mat Min Mat Mat Slots Evolved 4 | . . . 2 2 Power . | . . . . . Propulsion . | . . . . . Utility 4 | . . . 2 2 Weapon . | . . . . . Parts Attached 28 | 4 4 5 6 9 Power 5 | 1 . 1 1 2 Engine 4 | 1 . 1 1 1 Core 1 | . . . . 1 Reactor . | . . . . . Propulsion 8 | . 2 1 1 4 Treads . | . . . . . Leg 4 | . 2 . . 2 Wheel 2 | . . 1 1 . Hover . | . . . . . Flight 2 | . . . . 2 Utility 9 | 1 1 2 3 2 Device 5 | . . 1 3 1 Storage 2 | 1 . 1 . . Processor . | . . . . . Hackware 1 | . . . . 1 Protection 1 | . 1 . . . Artifact . | . . . . . Weapon 6 | 2 1 1 1 1 Energy Gun 4 | 2 1 . 1 . Energy Cannon . | . . . . . Ballistic Gun 1 | . . . . 1 Ballistic Cannon . | . . . . . Launcher . | . . . . . Special Weapon 1 | . . 1 . . Impact Weapon . | . . . . . Slashing Weapon . | . . . . . Piercing Weapon . | . . . . . Special Melee Weapon . | . . . . . Unidentified Prototypes . | . . . . . Parts Lost 21 | . 2 7 1 11 Power 3 | . . 1 . 2 Propulsion 5 | . . 2 1 2 Utility 7 | . . 2 . 5 Weapon 6 | . 2 2 . 2 Highest Loss Streak 11 | . 2 7 1 11 Average Slot Usage (%) 69 | . 94 63 80 42 Engine 10 | . 14 13 11 5 Leg 10 | . 28 16 . 3 Wheel 9 | . . 5 20 4 Device 14 | . . 7 28 13 Storage 9 | . 14 6 11 6 Protection 3 | . 11 4 . . Energy Gun 9 | . 25 3 9 2 Special Weapon 1 | . . 5 . . Naked Turns 12 | . . . . 12 Heaviest Build 20 | 13 16 11 17 20 Greatest Support 32 | 3 20 20 32 20 Greatest Overweight (x) 4 | 4 . . 1 2 Average Overweight (x) . | 2 . . . . Largest Inventory Capacity 6 | 6 6 6 6 6 Average Capacity 5 | 5 6 4 6 5 Most Carried 6 | 6 6 5 5 1 Average Carried 2 | 4 5 3 1 . Final Capacity 6 | 6 6 6 6 4 Final Carried 6 | 6 6 5 1 . Class Distribution -------------------- 100% | Mutant Dominant Class ---------------- Mutant | -10/Materials Mutant | -10/Mines Mutant | -9/Materials Mutant | -8/Materials Resources | -11 -10 -10 -9 -8 ----------- Run | Scr Mat Min Mat Mat Matter Collected 240 | 240 . . . . Remotely . | . . . . . Salvage Created . | . . . . . Parts . | . . . . . Haulers Intercepted . | . . . . . Recyclers Shooed 1 | . . . . 1 Parts Field Recycled . | . . . . . Retrieved Matter . | . . . . . Parts Self-Destructed . | . . . . . Prevented . | . . . . . Kills | -11 -10 -10 -9 -8 ------- Run | Scr Mat Min Mat Mat Combat Hostiles Destroyed . | . . . . . Classes Destroyed . | . . . . . Best Kill Streak . | . . . . . Combat Bots Only . | . . . . . Max Kills in Single Turn . | . . . . . Gunslinging . | . . . . . Exploded . | . . . . . Melee . | . . . . . Uniques/NPCs Destroyed . | . . . . . Combat | -11 -10 -10 -9 -8 -------- Run | Scr Mat Min Mat Mat Damage Taken 2115 | . 313 437 201 1164 Core 781 | . 64 111 43 563 Absorbed by Shields 140 | . . . 75 65 Core Remaining (%) 73 | 100 . 30 89 . Volleys Fired . | . . . . . Largest . | . . . . . Hottest . | . . . . . Shots Fired . | . . . . . Gun . | . . . . . Cannon . | . . . . . Launcher . | . . . . . Special . | . . . . . Kinetic . | . . . . . Thermal . | . . . . . Explosive . | . . . . . Electromagnetic . | . . . . . Robot Hit Streak . | . . . . . Robot Miss Streak . | . . . . . Penetration Max . | . . . . . Secondary Targets . | . . . . . Shots Hit Robots . | . . . . . Core Hits 3 | . . . . 3 Critical Hits . | . . . . . Critical Kills . | . . . . . Critical Parts Destroyed . | . . . . . Melee Attacks . | . . . . . Impact . | . . . . . Slashing . | . . . . . Piercing . | . . . . . Sneak Attacks . | . . . . . Combat Hostiles . | . . . . . Follow-up Attacks . | . . . . . Damage Inflicted 39 | . 4 . . 35 Guns . | . . . . . Cannons . | . . . . . Explosions . | . . . . . Melee . | . . . . . Ramming 39 | . 4 . . 35 Kinetic . | . . . . . Thermal . | . . . . . Explosive . | . . . . . Electromagnetic . | . . . . . Impact . | . . . . . Slashing . | . . . . . Piercing . | . . . . . Highest Corruption 14 | . 1 1 . 14 Average Corruption 4 | . 1 1 . 12 Corruption Purged . | . . . . . Effects 4 | . . . . 4 Matter Fused 1 | . . . . 1 Energy Discharges 1 | . . . . 1 Parts Rejected 1 | . . . . 1 Data Loss (minor) 1 | . . . . 1 Overload Shots . | . . . . . Overflow Damage . | . . . . . Projectiles . | . . . . . Explosions . | . . . . . Melee . | . . . . . Knockbacks . | . . . . . Impact . | . . . . . Kinetic . | . . . . . Secondary . | . . . . . Self-Inflicted Damage 18 | . 2 . . 16 Shots . | . . . . . Rammed 10 | . 1 . . 9 Targets Rammed 10 | . 1 . . 9 Kicked . | . . . . . Crushed . | . . . . . Highest Temperature 3 | . . . . 3 Average Temperature 3 | . . . . 3 Received Heat Transfer 590 | . 168 . 68 354 Siege Activations . | . . . . . Robots Corrupted . | . . . . . Combat Hostiles . | . . . . . Parts Fried . | . . . . . Impact Corruptions . | . . . . . Robots Melted . | . . . . . Combat Hostiles . | . . . . . Parts Melted . | . . . . . Heat Transferred . | . . . . . Parts Sabotaged . | . . . . . Parts Stolen . | . . . . . Parts Stripped . | . . . . . Power Chain Reactions . | . . . . . Missiles Intercepted . | . . . . . Alert | -11 -10 -10 -9 -8 ------- Run | Scr Mat Min Mat Mat Peak Influence 115 | . 30 33 115 53 Initial 48 | . . 3 5 48 Average 21 | . 17 8 38 28 Maximum Alert Level . | . . . . . Low Security (%) 100 | 100 100 100 100 100 Level 1 . | . . . . . Level 2 . | . . . . . Level 3 . | . . . . . Level 4 . | . . . . . Level 5 . | . . . . . High Security . | . . . . . Max Security . | . . . . . Squads Dispatched 1 | . 1 . . . Investigation . | . . . . . Extermination . | . . . . . Reinforcement 1 | . 1 . . . Assault . | . . . . . Garrison . | . . . . . Intercept . | . . . . . Construction Impeded . | . . . . . Haulers Reinforced . | . . . . . Stealth | -11 -10 -10 -9 -8 --------- Run | Scr Mat Min Mat Mat Distress Signals 2 | . 1 . . 1 Communications Jammed . | . . . . . Distress Signals . | . . . . . Times Spotted 28 | . 6 3 7 12 Peak Tracking Total 12 | . 5 3 4 12 Tactical Retreats 4 | . . 2 2 . Traps | -11 -10 -10 -9 -8 ------- Run | Scr Mat Min Mat Mat Traps Triggered 1 | . 1 . . . Indirectly . | . . . . . Trap Hack Attempts . | . . . . . Triggered . | . . . . . Disarmed . | . . . . . Reprogrammed . | . . . . . Reused . | . . . . . Traps Extracted . | . . . . . Installed . | . . . . . Triggered . | . . . . . Machines | -11 -10 -10 -9 -8 ---------- Run | Scr Mat Min Mat Mat Machines Disabled . | . . . . . Max in Single Turn . | . . . . . Machines Sabotaged . | . . . . . Garrisons Compromised . | . . . . . Overloaded Fab Kills . | . . . . . Fab Network Shutdowns . | . . . . . Hacking | -11 -10 -10 -9 -8 --------- Run | Scr Mat Min Mat Mat Machines Accessed . | . . . . . Terminals . | . . . . . Fabricators . | . . . . . Repair Stations . | . . . . . Recycling Units . | . . . . . Scanalyzers . | . . . . . Garrison Access . | . . . . . Total Hacks . | . . . . . Successful . | . . . . . Failed . | . . . . . Catastrophic . | . . . . . Database Lockouts . | . . . . . Manual . | . . . . . Terminals . | . . . . . Fabricators . | . . . . . Repair Stations . | . . . . . Recycling Units . | . . . . . Scanalyzers . | . . . . . Garrison Access . | . . . . . Terminal Hacks . | . . . . . Fabricator Hacks . | . . . . . Repair Station Hacks . | . . . . . Recycling Unit Hacks . | . . . . . Scanalyzer . | . . . . . Garrison Access Hacks . | . . . . . Unauthorized Hacks . | . . . . . Terminals . | . . . . . Fabricators . | . . . . . Repair Stations . | . . . . . Recycling Units . | . . . . . Scanalyzers . | . . . . . Garrison Access . | . . . . . Data Cores Recovered . | . . . . . Used . | . . . . . Hacking Detections . | . . . . . Full Trace Events . | . . . . . Feedback Events . | . . . . . Feedback Blocked . | . . . . . Robot Schematics Acquired . | . . . . . Robots Built . | . . . . . Matter . | . . . . . Time . | . . . . . Total Robot Build Rating . | . . . . . Part Schematics Acquired . | . . . . . Parts Built . | . . . . . Matter . | . . . . . Time . | . . . . . Total Part Build Rating . | . . . . . Parts Repaired . | . . . . . Time . | . . . . . Parts Recycled . | . . . . . Recycled Matter . | . . . . . Retrieved Matter . | . . . . . Retrieved Components . | . . . . . Parts Scanalyzed . | . . . . . Part Schematics Acquired . | . . . . . Parts Damaged . | . . . . . Bothacking | -11 -10 -10 -9 -8 ------------ Run | Scr Mat Min Mat Mat Used RIF Installer . | . . . . . Robots Hacked . | . . . . . Non-combat . | . . . . . Combat . | . . . . . Robot Hacks Applied . | . . . . . Relay Couplers Released . | . . . . . Robots Rewired . | . . . . . Allies Hacked . | . . . . . Hacks Repelled . | . . . . . Allies | -11 -10 -10 -9 -8 -------- Run | Scr Mat Min Mat Mat Total Allies . | . . . . . Largest Group . | . . . . . Highest-Rated Group . | . . . . . Highest-Rated Ally . | . . . . . Total Orders . | . . . . . Ally Attacks . | . . . . . Total Damage . | . . . . . Kills . | . . . . . Allies Corrupted . | . . . . . Allies Melted . | . . . . . Intel | -11 -10 -10 -9 -8 ------- Run | Scr Mat Min Mat Mat Robot Analysis Total . | . . . . . Derelict Logs Recovered 1 | . . 1 . . Drone Launches . | . . . . . Drone Recoveries . | . . . . . Exploration | -11 -10 -10 -9 -8 ------------- Run | Scr Mat Min Mat Mat Turns Passed 739 | 81 109 189 216 144 Spaces Moved 621 | 36 84 162 199 140 Core 74 | 36 . . . 38 Treads . | . . . . . Legs 192 | . 84 90 . 18 Wheels 323 | . . 72 199 52 Hover . | . . . . . Flight 32 | . . . . 32 Fastest Speed 40 | 50 120 100 100 40 Average Speed 107 | 198 120 111 101 83 Slowest Speed 250 | 250 120 120 110 150 Overloaded Moves . | . . . . . Propulsion Burnouts . | . . . . . Robots Hopped 2 | . . . . 2 Cave-ins Triggered . | . . . . . Exploration Rate (%) 23 | 4 24 49 26 15 Regions Visited 4 Branch Regions 1 Pre-discovered Areas 1 | . . 1 . . Known Exits Taken . | . . . . . Unknown Exits Taken 4 | 1 1 1 1 . Scrap Searched . | . . . . . Spaces Dug . | . . . . . Terrain Destroyed . | . . . . . Melee . | . . . . . Projectile . | . . . . . AOE . | . . . . . Terrain Rammed . | . . . . . Walls Destroyed . | . . . . . Machines Disabled . | . . . . . Actions | -11 -10 -10 -9 -8 --------- Run | Scr Mat Min Mat Mat Total 681 | 45 91 171 213 161 Wait 9 | . . . 5 4 Move 613 | 35 83 161 198 136 Hop 2 | . . . . 2 Pick Up 13 | 6 3 4 . . Fast Attach 17 | 4 1 . 4 8 Attach 9 | . 3 4 1 1 Detach . | . . . . . Swap 2 | . . 1 1 . Drop 6 | . . 1 4 1 Fire . | . . . . . Melee . | . . . . . Ram 5 | . . . . 5 Kick 5 | . 1 . . 4 Crush . | . . . . . Escape Stasis . | . . . . . Rewire . | . . . . . Trap . | . . . . . Miscellaneous . | . . . . . Route ------- -11/Scrapyard -10/Materials -10/Mines -9/Materials -8/Materials History --------- Turn | Location | Event 18 | -11/Scrapyard | Discovered new exit (range 16) 82 | -11/Scrapyard | Entered Materials 162 | -10/Materials | Discovered new exit (range 16) 191 | -10/Materials | Entered Mines 293 | -10/Mines | Core integrity fell below 50% 325 | -10/Mines | Build established: Mutant 339 | -10/Mines | Lost 7 parts (1p2n2u2w) 346 | -10/Mines | Found a hidden stash of uninstalled traps 365 | -10/Mines | Learned location of Zion (-6) 370 | -10/Mines | Discovered new exit (range 10) 380 | -10/Mines | Entered Materials 380 | -9/Materials | Evolved 2 slots: Utility x2 591 | -9/Materials | Discovered new exit (range 5) 596 | -9/Materials | Entered another Materials area 596 | -8/Materials | Evolved 2 slots: Utility x2 673 | -8/Materials | System corruption reached 10% 706 | -8/Materials | Core integrity fell below 50% 721 | -8/Materials | Core integrity fell below 20% 740 | -8/Materials | Destroyed by Y-45 Defender with Beam Rifle Last Messages --------------- 00680_ System corrupted: Energy discharge (-36). 00680_ R-06 Scavenger collects Com. Wheel. 00690_ Integration Mediator destroyed. 00691_ Broken Aluminum Leg destroyed. 00692_ Aluminum Leg destroyed. 00696_ System corrupted: Component data lost. 00700_ Sml. Storage Unit destroyed. 00702_ Ion Engine destroyed. 00703_ Slammed into S-10 Pest. 00703_ Destabilizing: Core damaged (-16). 00708_ S-10 Pest destroyed. 00708_ Acquired Cesium-ion Thruster. 00712_ System corrupted: Cesium-ion Thruster rejected. 00718_ Acquired Maneuvering Thrusters. 00725_ Acquired Cesium-ion Thruster. 00728_ Maneuvering Thrusters destroyed. 00731_ System corrupted: Matter fused (-5). 00732_ Acquired Lgt. Nuclear Core. 00734_ Acquired Hacking Suite. 00739_ R-06 Scavenger collects Flight Unit. Map ----- +----------------------------------------------------+ | ?????????????????????????????????????????????????? | | ?????????????????????????????????????????????????? | | ?????????????????????????????????????????????????? | | ?????????????????????????????????????????????????? | | ?????????????????????????????????????????????????? | | ?????????????????????????????????????????????????? | | ?????????????????????????????????????????????????? | | ?????????????????????????????????????????????????? | | ?????????????????????????????????????????????????? | | ?????????????????????????????????????????????????? | | ?????????????????????????????????????????????????? | | ????????????????????#######??????????????????????? | | ????????????????????# #??????????????????????? | | ????????????????????# """#??????????????????????? | | ????????????????????# """#??????????????????????? | | ????????????????????# """#??????????????????????? | | ????????????????????# #??????????????????????? | | ????????????????????# """#??????????????????????? | | ??????????########### """#??????????????????????? | | ??????????# ## """#??????????????????????? | | ??????????# ## #??????????????????????? | | ??????????# ## # ???????######???????? | | ??????????# ##! #? ?????##!!!!##??????? | | ??????????# " ## ####w#####! !#??????? | | ??????????#""" ####s### ##! !####+### | | ??????????#""" # g @ ## ## # | | ??????????#""" # Y Y # | | ??????????# "" + b Y [Y r | | ??????????#""" # r # | | ??????????#"" + #######+## # | | ??????????#"" ####+### #????? ####### | | ??????????# " #?? ?#########?????"" ??????? | | ??????????# #?? ??????????????""" #?????? | | ??????????# #? """ ?????????????""" #?????? | | ??????????# #? """ ???????????? #?????# | | ??????????# ## """ #??????????? """ #?????# | | ??????????# ## #?????????????"" #?????# | | ??????????########### """ #??????????????? #?????# | | ????????????????????# ??? #??????????????? #?????# | | ????????????????????#?????#??????????????? #?????# | | ???????????????????????????????????????????#?##### | | ????????????????????????????????????????????# | | ?????????????????????????????????????????????# "" | | ?????????????????????????????????????????????# ""S | | ?????????????????????????????????????????????# "" | | ??????????????????????????????????????????????? | | ??????????????????????????????????????????????#### | | | | | | | +----------------------------------------------------+ Best States ------------- Heat Dissipation 31 Energy Generation 14 Energy Capacity 250 Matter Stores 280 Matter Capacity 300 Sight Range 16 Terrain Scan Range 16 Terrain Scan Density 10 ECM Strength 1 Armor Coverage 150 Evasion (%) 62 Offensive Hacking 10 Item Schematics ----------------- None Robot Schematics ------------------ None Fabricated ------------ Nothing Alien Tech Used ----------------- None Achievements -------------- None Challenges ------------ None Game ------ Seed DeliveryTachyonCore Manual? 0 Play Time 00:11:15 Cumulative 19.7 hours Start 2020.12.16 @ 05:36:35 End 2020.12.16 @ 05:46:00 Sessions 1 Manual Loads 0 Difficulty Rogue Special Mode None Game No. 59 Rogue 59 Adventurer 0 Explorer 0 Win Type - Total 0 Types 0/0/0/0/0/0/0/0/0 Lore% 20 Gallery% 31 Achievement% 21 Wizard Run 0 Options --------- ASCII 0 Keyboard 0 Movement Numpad Keybinds 0 Fullscreen 1 Font 18/Terminus Map View 76x50 Tactical HUD 1 Map Filters NONE Filters NONE Steam 1 RUN: 9e815b5c-d251-45ce-a31c-39cc1c4c1ba2